bitfinex/quotes_SOLUSD_20250416
["timestamp","ask_amount","ask_price","bid_price","bid_amount"]
[1744821575005,53.86764262,127.42,127.37,74.23859921]
[1744821575820,82.8,127.42,127.38,53.86764262]
[1744821576128,53.86764262,127.41,127.37,74.23859921]
[1744821576507,53.86764262,127.38,127.37,12.52]
[1744821576712,53.86764262,127.38,127.33,12.52]
[1744821577026,53.86764262,127.37,127.33,12.52]
[1744821577418,53.86764262,127.36,127.33,12.52]
[1744821577619,53.86764262,127.35,127.33,12.52]
[1744821577825,61.71842974,127.38,127.33,12.52]
[1744821577826,53.86764262,127.34,127.33,12.52]
[1744821578005,53.86764262,127.35,127.33,12.52]
[1744821579420,53.86764262,127.36,127.33,20.37355626]
[1744821579620,144.51898822,127.37,127.33,20.37355626]
[1744821580131,144.51898822,127.37,127.33,12.52]
[1744821580431,53.86764262,127.34,127.33,12.52]
[1744821581027,53.86764262,127.35,127.33,12.52]
[1744821581215,136.66764262,127.37,127.33,20.37359723]
[1744821581421,136.66764262,127.37,127.33,74.24123985]
[1744821581931,144.51886883,127.37,127.33,74.24123985]
[1744821582326,82.8,127.37,127.34,53.86764262]
[1744821582830,82.8,127.39,127.36,53.86764262]
[1744821583030,82.8,127.41,127.38,53.86764262]
[1744821583231,82.8,127.41,127.4,53.86764262]
[1744821583429,53.86764262,127.43,127.39,66.38764262]
[1744821583736,53.86764262,127.43,127.39,12.52]
[1744821584046,53.86764262,127.41,127.39,12.52]
[1744821584223,53.86764262,127.42,127.39,12.52]
[1744821585136,53.86764262,127.4,127.39,12.52]
[1744821585633,7.84806152,127.42,127.39,12.52]
[1744821585634,53.86764262,127.41,127.39,12.52]
[1744821587116,43.34434434,127.41,127.39,12.52]
[1744821587418,82.8,127.43,127.39,48.01547071]
[1744821587620,126.14306869,127.43,127.39,48.01547071]
[1744821587826,82.8,127.42,127.39,12.52]
[1744821588121,7.84759798,127.43,127.39,48.01547071]
[1744821588320,0.063,127.45,127.42,35.49547071]
[1744821588521,35.55847071,127.45,127.41,35.49547071]
[1744821588831,7.9093073,127.45,127.41,35.49547071]
[1744821589022,43.40477801,127.45,127.41,35.49547071]
[1744821589225,7.9093073,127.45,127.41,53.80002055]
[1744821589639,61.70932785,127.45,127.4,0.28432314]
[1744821589832,61.70932785,127.45,127.4,54.08434369]
[1744821590014,61.70932785,127.45,127.41,53.80002055]
[1744821591536,136.60002055,127.44,127.4,53.80002055]
[1744821591742,53.80002055,127.43,127.39,311.24002055]
[1744821592039,136.60002055,127.44,127.4,12.52]
[1744821592236,53.80002055,127.43,127.39,298.72002055]
[1744821592418,53.80002055,127.43,127.4,12.52]
[1744821593335,82.8,127.44,127.39,244.92]
[1744821593336,53.80002055,127.42,127.39,244.92]
[1744821593542,82.8,127.44,127.39,257.44]
[1744821593543,7.84929356,127.4,127.39,257.44]
[1744821594133,7.84929356,127.4,127.31,19.63660811]
[1744821594134,20.0,127.31,127.3,0.03]
[1744821594317,57.8220246,127.31,127.24,0.03]
[1744821594524,53.80002055,127.26,127.24,0.03]
[1744821594732,53.80002055,127.26,127.21,53.80002055]
[1744821594937,53.80002055,127.24,127.2,13.2]
[1744821595432,61.66006019,127.23,127.2,13.2]
[1744821595638,53.80002055,127.22,127.2,13.2]
[1744821595839,7.85854616,127.25,127.2,67.00002055]
[1744821596045,61.65856671,127.25,127.2,67.00002055]
[1744821596247,53.80002055,127.24,127.2,13.2]
[1744821596745,7.85854616,127.25,127.2,13.2]
[1744821597134,53.80002055,127.24,127.2,13.2]
[1744821597335,53.80002055,127.23,127.2,13.2]
[1744821597643,61.66041985,127.22,127.2,13.2]
[1744821597826,7.8603993,127.22,127.2,13.2]
[1744821598851,53.80002055,127.21,127.19,2.8117874]
[1744821599038,53.80002055,127.2,127.19,2.8117874]
[1744821599240,107.6000411,127.2,127.19,2.8117874]
[1744821600225,107.6000411,127.2,127.19,1e-08]
[1744821600846,115.46167632,127.2,127.19,1e-08]
[1744821604342,200.42394047,127.2,127.14,13.22]
[1744821604539,53.80002055,127.16,127.14,13.22]
[1744821604745,82.8,127.19,127.14,13.22]
[1744821605059,7.86442452,127.16,127.14,13.22]
[1744821605358,61.66444507,127.16,127.14,13.22]
[1744821605559,61.66444507,127.16,127.14,2.22]
[1744821606255,7.86442452,127.16,127.14,2.22]
[1744821606557,53.80002055,127.15,127.14,2.22]
[1744821607135,61.66474725,127.15,127.14,2.22]
[1744821608368,81.326564,127.15,127.1,13.22]
[1744821608550,53.80002055,127.12,127.1,13.22]
[1744821608748,53.80002055,127.13,127.1,13.22]
[1744821609346,7.86656096,127.13,127.1,67.02002055]
[1744821609649,7.86656096,127.13,127.1,13.22]
[1744821610243,7.86544346,127.14,127.1,67.02002055]
[1744821610438,61.66546401,127.14,127.1,13.22]
[1744821610840,61.66546401,127.14,127.1,67.02002055]
[1744821611033,53.80002055,127.13,127.1,10.72]
[1744821611751,61.66620153,127.13,127.1,10.72]
[1744821612670,53.80002055,127.12,127.1,10.72]
[1744821612845,53.80002055,127.11,127.1,10.72]
[1744821614060,53.80002055,127.12,127.1,10.72]
[1744821614237,53.80002055,127.11,127.1,10.72]
[1744821615064,53.80002055,127.11,127.08,0.03]
[1744821615370,136.60002055,127.12,127.08,0.03]
[1744821615857,7.86720163,127.11,127.08,0.03]
[1744821616160,53.80002055,127.1,127.08,0.03]
[1744821616367,61.66722218,127.11,127.08,0.03]
[1744821616741,53.80002055,127.1,127.08,0.03]
[1744821617040,53.80002055,127.11,127.08,0.03]
[1744821617237,35.66032064,127.11,127.08,0.03]
[1744821617872,35.66032064,127.1,127.08,0.03]
[1744821618287,35.66032064,127.09,127.03,1.5348]
[1744821618570,35.66032064,127.04,126.94,35.66032064]
[1744821618867,43.64462064,127.08,126.99,35.66032064]
[1744821619059,43.64462064,127.08,127.0,48.90032064]
[1744821619060,35.66032064,127.06,127.0,48.90032064]
[1744821619264,54.13367617,127.05,127.0,13.24]
[1744821619452,54.13367617,127.02,127.0,13.24]
[1744821619766,54.13367617,127.04,127.01,13.24]
[1744821620066,54.13367617,127.05,127.0,54.27583774]
[1744821620274,7.87112257,127.05,127.01,13.24]
[1744821620457,7.87112257,127.05,126.99,0.14216157]
[1744821620458,54.13367617,127.03,126.99,0.14216157]
[1744821620661,54.13367617,127.03,127.0,13.24]
[1744821620872,33.9843,127.08,127.01,54.41799931]
[1744821621171,8.1637,127.12,127.04,0.28432314]
[1744821621354,54.13367617,127.07,127.05,13.24]
[1744821621672,7.86745107,127.11,127.05,13.24]
[1744821621874,54.13367617,127.09,127.05,13.24]
[1744821622374,54.13367617,127.11,127.06,54.41799931]
[1744821622545,54.13367617,127.11,127.06,54.13367617]
[1744821622747,33.8661087,127.13,127.06,54.13367617]
[1744821622961,54.13367617,127.11,127.06,54.13367617]
[1744821623144,7.86561945,127.14,127.07,54.13367617]
[1744821623344,8.1791,127.16,127.06,0.28432314]
[1744821623571,8.1791,127.16,127.1,54.13367617]
[1744821623766,30.0,127.11,127.1,0.28432314]
[1744821624064,54.13367617,127.15,127.11,13.24]
[1744821624268,54.13367617,127.14,127.11,13.24]
[1744821624646,54.13367617,127.15,127.11,13.24]
[1744821625066,0.063,127.17,127.12,54.13367617]
[1744821625368,0.063,127.17,127.11,21.10714652]
[1744821625369,54.13367617,127.16,127.11,75.24082269]
[1744821626159,0.063,127.17,127.12,0.28432314]
[1744821626353,54.19667617,127.17,127.12,54.41799931]
[1744821626559,54.13367617,127.16,127.11,21.10714652]
[1744821626761,54.13367617,127.16,127.11,75.24082269]
[1744821626954,54.13367617,127.15,127.11,7.86714652]
[1744821627160,54.13367617,127.15,127.12,13.52]
[1744821627363,54.13367617,127.13,127.12,13.52]
[1744821628475,0.063,127.17,127.12,75.5201049]
[1744821628659,54.19667617,127.17,127.12,75.5201049]
[1744821629168,54.13367617,127.16,127.12,21.38642873]
[1744821629478,54.13367617,127.15,127.12,21.38642873]
[1744821629652,54.13367617,127.13,127.12,13.52]
[1744821629855,1.5414,127.21,127.12,13.52]
[1744821629856,0.063,127.26,127.15,6.5615]
[1744821630053,0.063,127.26,127.24,54.13367617]
[1744821630465,54.19667617,127.26,127.22,13.52]
[1744821630775,54.13367617,127.24,127.22,13.52]
[1744821631152,0.063,127.26,127.22,13.52]
[1744821631360,54.13367617,127.25,127.22,13.52]
[1744821631564,54.13367617,127.23,127.22,13.52]
[1744821631765,54.13367617,127.23,127.18,13.52]
[1744821632081,54.13367617,127.21,127.18,13.52]
[1744821632582,54.13367617,127.23,127.18,54.13367617]
[1744821632783,54.13367617,127.24,127.19,54.13367617]
[1744821632979,26.063,127.26,127.22,54.13367617]
[1744821633280,0.063,127.26,127.24,54.13367617]
[1744821633481,0.063,127.26,127.25,54.13367617]
[1744821634291,0.063,127.26,127.25,75.79654547]
[1744821634471,0.063,127.26,127.25,67.65367617]
[1744821634862,0.063,127.26,127.25,75.79654547]
[1744821635367,0.063,127.26,127.25,75.51222233]
[1744821635587,0.03279325,127.26,127.25,75.79654547]
[1744821638197,54.19667617,127.33,127.26,0.28432314]
[1744821638489,62.05029688,127.33,127.28,54.13367617]
[1744821638659,0.063,127.33,127.26,54.56016088]
[1744821638860,0.063,127.33,127.32,54.13367617]
[1744821639104,0.063,127.33,127.32,13.52]
[1744821639310,0.063,127.33,127.32,67.65367617]
[1744821639671,0.063,127.33,127.32,75.65006331]
[1744821639872,0.063,127.33,127.32,67.65367617]
[1744821640083,0.063,127.33,127.32,75.50790174]
[1744821640286,0.063,127.33,127.32,67.65367617]
[1744821641092,0.063,127.33,127.32,75.50790174]
[1744821642394,0.063,127.33,127.32,129.92590105]
[1744821643068,0.063,127.33,127.32,130.06806262]
[1744821644005,0.063,127.33,127.32,129.92590105]
[1744821644207,0.063,127.33,127.32,21.37422557]
[1744821644374,0.063,127.33,127.32,75.50790174]
[1744821644913,0.063,127.33,127.32,13.52]
[1744821645194,54.19667617,127.33,127.32,13.52]
[1744821646195,54.19667617,127.33,127.28,67.63367617]
[1744821646394,61.98820775,127.32,127.28,67.63367617]
[1744821646572,54.13367617,127.3,127.28,13.5]
[1744821647483,54.13367617,127.29,127.28,13.5]
[1744821647883,54.13367617,127.29,127.23,13.5]
[1744821648080,26.0,127.31,127.23,13.5]
[1744821648081,54.13367617,127.26,127.23,13.5]
[1744821648597,61.99236627,127.25,127.23,13.5]
[1744821648784,54.13367617,127.27,127.23,13.5]
[1744821648982,26.0,127.31,127.26,54.13367617]
[1744821649179,61.98872053,127.31,127.27,54.13367617]
[1744821649380,7.85504436,127.31,127.27,54.13367617]
[1744821649584,61.98872053,127.31,127.27,54.13367617]
[1744821649807,61.98812099,127.32,127.28,54.13367617]
[1744821650192,61.98812099,127.32,127.27,54.13367617]
[1744821650384,54.13367617,127.28,127.23,21.35957431]
[1744821650585,54.13367617,127.27,127.23,13.5]
[1744821650791,54.13367617,127.26,127.23,13.5]
[1744821651090,54.13367617,127.25,127.23,13.5]
[1744821651677,54.13367617,127.24,127.23,13.5]
[1744821652505,54.13367617,127.28,127.23,67.63367617]
[1744821652693,144.79004261,127.29,127.24,54.13367617]
[1744821653103,144.79004261,127.29,127.25,54.13367617]
[1744821653405,144.79004261,127.29,127.24,54.13367617]
[1744821653599,82.8,127.29,127.26,54.13367617]
[1744821653906,144.78982551,127.29,127.25,54.13367617]
[1744821654092,82.8,127.29,127.25,54.13367617]
[1744821654409,90.65442305,127.32,127.23,41.29332586]
[1744821654577,90.65442305,127.32,127.28,54.13367617]
[1744821654995,90.65442305,127.32,127.23,41.29332586]
[1744821655178,144.78809922,127.32,127.27,54.13367617]
[1744821655499,90.65442305,127.32,127.28,54.13367617]
[1744821655889,32.0663,127.33,127.29,54.13367617]
[1744821656091,54.13367617,127.32,127.28,67.69367617]
[1744821656398,54.13367617,127.32,127.28,13.56]
[1744821657307,54.13367617,127.31,127.28,13.56]
[1744821657601,144.78835678,127.32,127.28,13.56]
[1744821657826,144.78835678,127.32,127.28,67.69367617]
[1744821657827,90.65468061,127.32,127.28,67.69367617]
[1744821658178,82.8,127.32,127.29,54.13367617]
[1744821658391,6.0663,127.33,127.3,54.13367617]
[1744821658689,13.92004253,127.33,127.3,54.13367617]
[1744821658888,6.0663,127.33,127.3,54.13367617]
[1744821659181,6.0663,127.33,127.31,54.13367617]
[1744821659182,0.063,127.33,127.31,54.13367617]
[1744821659501,0.063,127.33,127.28,21.41658679]
[1744821659502,0.063,127.33,127.29,61.98975031]
[1744821660195,0.063,127.33,127.3,54.13367617]
[1744821660396,0.063,127.33,127.31,54.13367617]
[1744821660598,0.063,127.33,127.32,54.13367617]
[1744821661509,0.063,127.33,127.32,61.98790174]
[1744821662888,0.063,127.33,127.32,62.27222488]
[1744821663211,0.063,127.33,127.32,43.65180107]
[1744821663708,0.063,127.33,127.32,79.16505343]
[1744821663918,0.063,127.33,127.32,79.307215]
[1744821664403,0.063,127.33,127.32,43.65180107]
[1744821664714,0.063,127.33,127.3,43.36843044]
[1744821665007,0.063,127.33,127.31,43.36804803]
[1744821665210,0.063,127.33,127.31,7.85479567]
[1744821665381,0.063,127.33,127.31,35.51325236]
[1744821665986,0.063,127.33,127.3,35.51325236]
[1744821666186,0.063,127.33,127.29,43.36915355]
[1744821666987,7.91660873,127.33,127.29,43.36915355]
[1744821667190,35.51325236,127.32,127.28,13.56]
[1744821667388,43.42986109,127.33,127.29,35.51325236]
[1744821667693,7.91660873,127.33,127.29,35.51325236]
[1744821668714,7.91660873,127.33,127.28,13.56]
[1744821668715,35.51325236,127.31,127.28,13.56]
[1744821668919,35.51325236,127.3,127.28,13.56]
[1744821669108,35.51325236,127.32,127.28,13.56]
[1744821669295,35.51325236,127.3,127.28,13.56]
[1744821669611,82.8,127.32,127.28,13.56]
[1744821669812,35.51325236,127.3,127.28,13.56]
[1744821670511,7.85607667,127.29,127.28,13.56]
[1744821671017,43.3689927,127.3,127.28,13.56]
[1744821671210,7.85574034,127.3,127.28,13.56]
[1744821671521,7.85504065,127.31,127.28,49.07325236]
[1744821672223,7.85504065,127.31,127.28,13.56]
[1744821673435,90.65454046,127.32,127.28,49.07325236]
[1744821673719,0.063,127.33,127.31,35.51325236]
[1744821673923,35.51325236,127.32,127.28,49.07325236]
[1744821674099,82.8,127.32,127.29,35.51325236]
[1744821674300,82.8,127.32,127.3,35.51325236]
[1744821674495,82.8,127.32,127.29,35.51325236]
[1744821674698,82.8,127.32,127.29,43.36879817]
[1744821674899,82.8,127.32,127.3,35.51325236]
[1744821675104,0.063,127.33,127.31,35.51325236]
[1744821676217,0.063,127.33,127.32,35.51325236]
[1744821676422,0.063,127.33,127.32,35.7975755]
[1744821676714,0.063,127.33,127.32,79.16505343]
[1744821676921,0.063,127.33,127.32,79.307215]
[1744821677304,0.063,127.33,127.32,43.79396264]
[1744821677508,0.063,127.33,127.32,43.65180107]
[1744821677702,0.063,127.33,127.29,19.64019168]
[1744821677703,0.063,127.33,127.31,35.51325236]
[1744821677923,0.063,127.33,127.31,0.28432314]
[1744821678106,0.063,127.33,127.32,35.51325236]
[1744821679012,0.063,127.33,127.32,43.36747793]
[1744821679426,0.063,127.33,127.32,7.85422557]
[1744821679723,0.063,127.33,127.32,43.65180107]
[1744821680615,0.063,127.33,127.32,43.36747793]
[1744821680809,0.063,127.33,127.32,79.307215]
[1744821682012,1e-08,127.33,127.32,79.307215]
[1744821682217,1e-08,127.33,127.32,97.95686386]
[1744821682412,1e-08,127.33,127.32,79.307215]
[1744821682627,1e-08,127.33,127.32,43.79396264]
[1744821682931,1e-08,127.33,127.32,79.307215]
[1744821683532,0.063,127.36,127.33,19.07613357]
[1744821683827,0.063,127.36,127.35,35.7975755]
[1744821684506,0.063,127.36,127.34,48.57325236]
[1744821685122,0.063,127.36,127.35,35.51325236]
[1744821685406,0.063,127.36,127.35,43.64995084]
[1744821686924,0.063,127.36,127.35,43.79211241]
[1744821688209,1e-08,127.36,127.35,43.79211241]
[1744821690515,1e-08,127.36,127.35,62.44176127]
[1744821691118,1e-08,127.36,127.35,88.44176127]
[1744821691318,0.063,127.39,127.38,0.42648471]
[1744821691523,0.063,127.39,127.38,35.7975755]
[1744821692923,0.063,127.39,127.38,43.64810148]
[1744821693135,0.063,127.39,127.38,43.79026305]
[1744821693639,0.063,127.39,127.38,79.30351541]
[1744821695136,0.063,127.45,127.44,35.51325236]
[1744821695439,0.063,127.45,127.44,48.55325236]
[1744821695833,0.063,127.45,127.44,13.04]
[1744821696334,35.57625236,127.45,127.44,13.04]
[1744821696833,35.57625236,127.45,127.4,13.04]
[1744821697042,43.36045044,127.44,127.4,13.04]
[1744821698336,35.51325236,127.43,127.4,13.04]
[1744821699040,35.51325236,127.42,127.4,13.04]
[1744821700325,7.84867749,127.41,127.4,13.04]
[1744821700738,43.36192985,127.41,127.4,13.04]
[1744821702159,7.84867749,127.41,127.4,13.04]
[1744821702361,35.51325236,127.41,127.4,13.04]
[1744821704456,7.84990972,127.39,127.36,13.04]
[1744821704756,35.51325236,127.37,127.36,13.04]
[1744821704953,35.51325236,127.37,127.32,13.07]
[1744821705143,35.51325236,127.34,127.32,13.07]
[1744821705641,7.84990972,127.39,127.33,35.51325236]
[1744821705847,40.41209514,127.4,127.36,35.51325236]
[1744821706038,40.41209514,127.4,127.37,48.55325236]
[1744821706227,40.41209514,127.4,127.37,13.04]
[1744821706625,6.5625,127.4,127.37,48.55325236]
[1744821706828,14.41195125,127.4,127.37,13.04]
[1744821707051,6.5625,127.4,127.37,13.04]
[1744821707252,6.5625,127.4,127.37,48.55325236]
[1744821708541,14.41188746,127.4,127.37,13.04]
[1744821709131,49.92513982,127.4,127.37,13.04]
[1744821709755,14.41188746,127.4,127.37,13.04]
[1744821709953,6.5625,127.4,127.37,48.55325236]
[1744821710372,128.41905323,127.43,127.38,0.14216157]
[1744821710562,35.51325236,127.42,127.38,0.28432314]
[1744821710734,144.31325236,127.43,127.38,35.7975755]
[1744821710935,144.31325236,127.43,127.39,35.51325236]
[1744821710936,33.84765652,127.43,127.39,35.51325236]
[1744821711337,69.36090888,127.43,127.39,35.51325236]
[1744821711755,35.51325236,127.42,127.38,35.7975755]
[1744821712066,35.51325236,127.42,127.38,0.28432314]
[1744821712748,35.51325236,127.42,127.38,35.7975755]
[1744821713053,69.36090888,127.43,127.38,56.18788503]
[1744821713263,69.36090888,127.43,127.39,35.51325236]
[1744821714142,33.84765652,127.43,127.39,43.36310839]
[1744821714866,33.84765652,127.43,127.39,35.51325236]
[1744821715275,33.84765652,127.43,127.39,22.17634204]
[1744821715441,56.02399856,127.43,127.38,42.85095204]
[1744821716181,116.64765652,127.43,127.38,12.54]
[1744821716471,22.17634204,127.39,127.38,12.54]
[1744821717236,22.17634204,127.4,127.38,12.54]
[1744821717549,136.26627066,127.43,127.38,12.54]
[1744821717550,138.82399856,127.43,127.38,34.71634204]
[1744821718065,22.17634204,127.42,127.38,12.54]
[1744821718439,7.84867749,127.41,127.38,12.54]
[1744821720166,7.84833592,127.42,127.38,42.56679988]
[1744821720352,33.84756511,127.43,127.39,30.31050798]
[1744821720663,22.17634204,127.42,127.39,0.28432314]
[1744821721443,36.18706154,127.44,127.39,30.31034755]
[1744821721765,7.8471195,127.44,127.4,22.17634204]
[1744821722361,30.02346154,127.44,127.39,30.31034755]
[1744821723063,56.08585979,127.45,127.41,0.28432314]
[1744821723557,33.90951775,127.45,127.41,22.46066518]
[1744821723947,2.87862737,127.44,127.41,22.46066518]
[1744821724169,10.72559408,127.44,127.41,22.17634204]
[1744821724349,2.87862737,127.44,127.41,22.17634204]
[1744821724772,2.87862737,127.44,127.42,0.28432314]
[1744821724979,2.87862737,127.44,127.43,12.54]
[1744821725571,30.08575235,127.45,127.43,12.54]
[1744821727668,22.17634204,127.44,127.43,12.54]
[1744821728277,100.69593425,127.44,127.39,12.54]
[1744821728449,22.17634204,127.4,127.39,12.54]
[1744821730353,30.0256356,127.4,127.39,12.54]
[1744821730553,56.02529029,127.41,127.39,12.54]
[1744821730954,26.0,127.41,127.39,12.54]
[1744821731377,56.0251211,127.41,127.39,12.54]
[1744821731678,22.17634204,127.4,127.39,12.54]
[1744821731880,56.0251211,127.41,127.39,12.54]
[1744821732280,33.84877906,127.41,127.39,12.54]
[1744821732483,56.0251211,127.41,127.39,12.54]
[1744821732856,22.17634204,127.4,127.39,12.54]
[1744821733485,56.0251211,127.41,127.39,12.54]
[1744821734271,22.17634204,127.4,127.39,12.54]
[1744821734472,112.8256356,127.4,127.39,12.54]
[1744821734980,112.8256356,127.4,127.36,0.28432314]
[1744821735182,22.17634204,127.37,127.32,244.91]
[1744821735361,22.17634204,127.34,127.33,0.03]
[1744821736786,22.17634204,127.35,127.33,0.03]
[1744821736984,30.02901516,127.35,127.33,0.03]
[1744821737370,7.85267312,127.35,127.33,0.03]
[1744821737581,30.02901516,127.35,127.33,0.03]
[1744821738086,22.17634204,127.34,127.33,0.03]
[1744821738288,30.02901516,127.35,127.33,0.03]
[1744821738980,22.17634204,127.34,127.33,0.03]
[1744821739971,112.82833614,127.36,127.33,0.03]
[1744821740168,82.8,127.35,127.33,0.03]
[1744821740495,82.8,127.35,127.34,22.46066518]
[1744821740697,7.85020355,127.39,127.35,0.28432314]
[1744821740913,82.8,127.38,127.36,22.17634204]
[1744821741212,82.8,127.38,127.36,12.1]
[1744821741567,82.8,127.38,127.36,34.27634204]
[1744821741993,82.8,127.38,127.36,12.1]
[1744821742170,82.8,127.38,127.36,34.27634204]
[1744821742368,82.8,127.38,127.36,12.1]
[1744821743163,90.65062586,127.38,127.36,12.1]
[1744821743594,82.8,127.38,127.36,12.1]
[1744821744302,90.65056453,127.38,127.36,12.1]
[1744821744797,82.8,127.38,127.36,12.1]
[1744821745092,82.8,127.38,127.37,0.28432314]
[1744821746099,112.82598107,127.4,127.37,0.28432314]
[1744821746704,22.17634204,127.39,127.36,12.1]
[1744821747193,7.85052598,127.38,127.36,12.1]
[1744821749492,104.97634204,127.4,127.36,12.1]
[1744821749688,104.97634204,127.4,127.36,34.27634204]
[1744821750094,112.82595772,127.4,127.36,12.1]
[1744821750294,22.17634204,127.39,127.36,12.1]
[1744821750480,112.82595772,127.4,127.36,12.1]
[1744821750797,22.17634204,127.39,127.36,12.1]
[1744821750996,112.82595772,127.4,127.36,12.1]
[1744821751376,104.97634204,127.4,127.37,0.28432314]
[1744821751570,82.8,127.4,127.37,0.28432314]
[1744821751789,104.97634204,127.4,127.37,0.28432314]
[1744821752001,112.82574779,127.4,127.37,0.28432314]
[1744821753190,82.8,127.4,127.39,22.17634204]
[1744821753393,82.8,127.43,127.4,0.28432314]
[1744821753599,82.8,127.43,127.41,12.1]
[1744821753981,90.64756697,127.43,127.41,12.1]
[1744821754294,112.82390901,127.43,127.41,12.1]
[1744821754596,82.8,127.43,127.41,12.1]
[1744821755305,82.8,127.43,127.42,0.28432314]
[1744821755809,0.063,127.45,127.42,0.28432314]
[1744821756106,0.063,127.45,127.42,22.46066518]
[1744821756806,0.063,127.45,127.44,0.28432314]
[1744821757505,0.063,127.45,127.44,22.60282675]
[1744821757877,0.063,127.45,127.44,63.42881765]
[1744821758193,0.063,127.47,127.45,19.07613357]
[1744821758383,0.063,127.47,127.46,40.90432675]
[1744821758779,0.063,127.5,127.49,18.64964886]
[1744821758981,0.063,127.57,127.52,0.42648471]
[1744821759202,0.063,127.57,127.53,59.98067561]
[1744821759415,11.72702706,127.58,127.54,0.42648471]
[1744821759693,11.72702706,127.58,127.57,22.60282675]
[1744821760407,7.8364962,127.61,127.58,0.28432314]
[1744821761511,0.03,127.6,127.58,0.28432314]
[1744821762193,35.41149491,127.6,127.56,35.38149491]
[1744821762396,18.64964886,127.55,127.46,5.15012554]
[1744821762587,35.38149491,127.48,127.43,35.38149491]
[1744821762790,35.38149491,127.47,127.42,35.38149491]
[1744821762979,35.38149491,127.46,127.41,35.38149491]
[1744821763180,35.38149491,127.5,127.43,0.42648471]
[1744821763181,7.84407725,127.49,127.43,0.42648471]
[1744821763408,43.22557216,127.49,127.44,35.38149491]
[1744821764310,7.84336927,127.5,127.45,35.38149491]
[1744821764512,35.38149491,127.49,127.45,35.38149491]
[1744821764803,43.22554149,127.49,127.45,0.28432314]
[1744821765102,35.38149491,127.48,127.45,0.28432314]
[1744821765298,35.38149491,127.48,127.44,0.28432314]
[1744821765495,35.38149491,127.47,127.44,0.28432314]
[1744821765698,35.38149491,127.46,127.44,0.28432314]
[1744821765901,7.84404658,127.49,127.42,12.1]
[1744821765902,35.38149491,127.45,127.42,12.1]
[1744821766686,35.38149491,127.46,127.42,12.1]
[1744821766894,43.22738628,127.46,127.43,0.28432314]
[1744821767288,43.22738628,127.46,127.42,12.1]
[1744821767491,118.18149491,127.48,127.43,35.52365648]
[1744821767716,118.18149491,127.48,127.44,0.28432314]
[1744821768013,35.38149491,127.47,127.44,0.28432314]
[1744821769093,43.22670747,127.47,127.44,0.28432314]
[1744821769290,90.64461522,127.48,127.43,35.80797962]
[1744821769532,126.02611013,127.48,127.43,35.80797962]
[1744821769885,82.8,127.48,127.44,35.38149491]
[1744821770090,82.8,127.48,127.46,0.28432314]
[1744821770311,118.18149491,127.5,127.46,35.66581805]
[1744821770490,82.8,127.5,127.46,35.66581805]
[1744821770690,82.8,127.5,127.48,0.28432314]
[1744821772003,118.18149491,127.5,127.48,0.28432314]
[1744821774414,126.02474994,127.5,127.48,0.28432314]
[1744821774589,35.38149491,127.49,127.47,12.14]
[1744821774792,82.8,127.5,127.48,0.28432314]
[1744821775811,118.18149491,127.5,127.48,0.28432314]
[1744821776304,35.38149491,127.49,127.48,0.28432314]
[1744821777220,118.18149491,127.5,127.48,0.28432314]
[1744821778531,82.8,127.5,127.48,8.12853374]
[1744821778692,82.8,127.52,127.48,8.12853374]
[1744821778894,118.18149491,127.55,127.51,0.28432314]
[1744821779096,118.18149491,127.55,127.52,12.14]
[1744821779498,89.4223,127.57,127.53,35.66581805]
[1744821779830,82.8,127.57,127.53,35.66581805]
[1744821780027,118.18149491,127.57,127.53,35.66581805]
[1744821780323,82.8,127.57,127.53,35.66581805]
[1744821780525,35.38149491,127.58,127.54,35.52365648]
[1744821780896,82.8,127.59,127.54,35.38149491]
[1744821781227,118.18149491,127.59,127.56,0.28432314]
[1744821781755,35.38149491,127.57,127.53,0.14216157]
[1744821782036,35.38149491,127.57,127.53,0.28432314]
[1744821782237,35.38149491,127.54,127.53,0.28432314]
[1744821782417,35.38149491,127.54,127.52,12.14]